bitfinex-derivatives/quotes_SOLF0:USTF0_20220104
["timestamp","ask_amount","ask_price","bid_price","bid_amount"]
[1641314057261,12.36111497,171.15,171.12,4.0]
[1641314057459,15.21740557,171.15,171.12,4.0]
[1641314058060,12.36111497,171.15,171.12,4.0]
[1641314058261,12.36111497,171.17,171.13,5.38502196]
[1641314061168,12.36111497,171.18,171.14,4.12037166]
[1641314062069,12.36111497,171.18,171.15,4.0]
[1641314062370,12.36111497,171.18,171.15,8.519]
[1641314062568,12.36111497,171.18,171.15,4.519]
[1641314063669,12.36111497,171.18,171.14,4.12037166]
[1641314064472,15.21740557,171.19,171.15,4.12037166]
[1641314066574,2.8562906,171.19,171.14,5.38508271]
[1641314067174,15.21740557,171.19,171.13,8.12037166]
[1641314068877,42.88219557,171.19,171.13,8.12037166]
[1641314069777,2.8562906,171.18,171.13,8.12037166]
[1641314070678,2.8562906,171.18,171.13,4.12037166]
[1641314071378,4.1139768,171.16,171.13,8.38327589]
[1641314071579,4.1139768,171.16,171.13,5.38327589]
[1641314072178,4.1139768,171.15,171.13,5.38327589]
[1641314072379,4.1139768,171.15,171.13,8.38327589]
[1641314072778,2.85227321,171.15,171.13,8.38327589]
[1641314072980,2.85227321,171.15,171.14,27.66479]
[1641314073680,2.8562906,171.19,171.14,28.92769423]
[1641314073880,2.8562906,171.19,171.17,4.0]
[1641314074081,2.8562906,171.19,171.17,8.312]
[1641314077083,2.8562906,171.21,171.17,8.312]
[1641314078485,2.8562906,171.21,171.2,4.0]
[1641314078784,14.97517484,171.27,171.2,4.0]
[1641314078984,9.97517484,171.27,171.25,27.66479]
[1641314079185,9.97517484,171.27,171.25,33.51179]
[1641314079386,27.66479,171.34,171.26,4.0]
[1641314079785,40.83742093,171.34,171.26,4.0]
[1641314079987,52.36557606,171.34,171.26,4.0]
[1641314080787,40.83742093,171.34,171.26,4.0]
[1641314080989,13.17263093,171.33,171.26,4.0]
[1641314081189,10.17263093,171.33,171.26,4.0]
[1641314081391,10.17263093,171.33,171.3,4.0]
[1641314081591,49.22719655,171.41,171.3,9.799]
[1641314081791,49.22719655,171.42,171.33,4.0]
[1641314081993,52.22719655,171.42,171.33,4.0]
[1641314083091,3.0,171.42,171.34,27.66479]
[1641314083291,27.66479,171.44,171.36,4.0]
[1641314083491,3.0,171.43,171.36,4.0]
[1641314084092,27.66479,171.44,171.36,4.0]
[1641314084292,30.66479,171.44,171.36,4.0]
[1641314084496,27.66479,171.44,171.36,4.0]
[1641314084694,30.66479,171.44,171.34,33.94179]
[1641314084893,3.0,171.38,171.34,33.94179]
[1641314085395,3.0,171.39,171.34,33.94179]
[1641314085795,30.66479,171.44,171.34,33.94179]
[1641314086196,3.0,171.39,171.34,33.94179]
[1641314087700,3.0,171.39,171.34,6.277]
[1641314087900,3.0,171.38,171.31,27.66479]
[1641314088102,3.0,171.37,171.31,27.66479]
[1641314088503,3.0,171.37,171.29,4.0]
[1641314088903,33.6594,171.4,171.29,4.0]
[1641314089102,27.66479,171.35,171.29,4.0]
[1641314089903,27.66479,171.35,171.26,31.66479]
[1641314090104,3.0,171.34,171.26,31.66479]
[1641314090304,27.66479,171.35,171.26,31.66479]
[1641314090703,27.66479,171.35,171.26,37.84879]
[1641314091704,3.0,171.39,171.26,37.84879]
[1641314092208,3.0,171.38,171.26,37.84879]
[1641314092606,3.0,171.38,171.26,33.84879]
[1641314092807,33.6594,171.4,171.32,4.0]
[1641314093008,33.6594,171.4,171.32,9.025]
[1641314093209,33.6594,171.4,171.32,36.68979]
[1641314093608,27.66479,171.41,171.32,36.68979]
[1641314094008,3.0,171.39,171.32,36.68979]
[1641314094208,3.0,171.39,171.32,32.68979]
[1641314094408,3.0,171.4,171.32,32.68979]
[1641314095208,3.0,171.39,171.32,32.68979]
[1641314098010,30.66479,171.41,171.32,32.68979]
[1641314098210,27.66479,171.41,171.32,32.68979]
[1641314098411,27.66479,171.41,171.32,36.68979]
[1641314099012,3.0,171.4,171.32,36.68979]
[1641314099413,3.0,171.38,171.32,32.68979]
[1641314100416,3.0,171.4,171.32,32.68979]
[1641314100916,3.0,171.39,171.32,32.68979]
[1641314102016,3.0,171.39,171.32,26.10487962]
[1641314106924,3.0,171.39,171.3,8.56]
[1641314107124,3.0,171.39,171.31,27.66479]
[1641314108726,9.93448014,171.4,171.32,6.68566382]
[1641314108727,12.93448014,171.4,171.32,6.68566382]
[1641314109324,15.34598007,171.4,171.32,19.03164389]
[1641314109526,3.0,171.39,171.32,19.03164389]
[1641314110727,3.0,171.38,171.32,19.03164389]
[1641314112030,12.34598007,171.39,171.32,19.03164389]
[1641314112229,3.0,171.38,171.32,19.03164389]
[1641314112530,3.0,171.38,171.31,40.01077007]
[1641314113229,15.34598007,171.38,171.31,40.01077007]
[1641314113430,43.01077007,171.38,171.31,40.01077007]
[1641314113630,3.0,171.37,171.31,40.01077007]
[1641314114032,49.37077007,171.38,171.31,40.01077007]
[1641314114231,46.37077007,171.38,171.31,40.01077007]
[1641314114431,3.0,171.37,171.31,27.66479]
[1641314114631,40.01077007,171.38,171.31,27.66479]
[1641314115133,27.66479,171.38,171.32,19.03163061]
[1641314115834,30.66479,171.38,171.32,19.03163061]
[1641314116536,30.66479,171.38,171.31,40.01077007]
[1641314116736,27.66479,171.38,171.31,40.01077007]
[1641314118136,30.66479,171.38,171.31,40.01077007]
[1641314118335,3.0,171.33,171.31,12.34598007]
[1641314118535,8.574,171.33,171.31,12.34598007]
[1641314119043,5.574,171.33,171.28,12.34598007]
[1641314119537,27.66479,171.33,171.28,12.34598007]
[1641314119937,30.66479,171.33,171.28,12.34598007]
[1641314120137,2.63829745,171.32,171.27,20.50985499]
[1641314122837,27.66479,171.33,171.29,12.34598007]
[1641314123038,27.66479,171.33,171.29,18.62398007]
[1641314124041,27.66479,171.33,171.3,1.47812095]
[1641314124740,2.63820451,171.32,171.3,1.47812095]
[1641314126842,2.63820451,171.32,171.27,1.47812095]
[1641314127442,12.34598007,171.35,171.28,12.34598007]
[1641314127642,12.34598007,171.35,171.28,18.42698007]
[1641314127842,15.34598007,171.35,171.28,18.42698007]
[1641314128342,14.98418458,171.35,171.28,6.081]
[1641314128841,14.98418458,171.35,171.29,4.0]
[1641314129244,14.98418458,171.35,171.29,5.47812095]
[1641314129942,17.98418458,171.36,171.3,1.47812095]
[1641314130743,3.0,171.34,171.3,1.47812095]
[1641314131445,5.63820451,171.35,171.3,1.47812095]
[1641314131646,2.63820451,171.33,171.3,1.47812095]
[1641314132244,14.98418458,171.34,171.28,1.47812095]
[1641314132744,14.98418458,171.35,171.28,1.47812095]
[1641314133445,12.34598007,171.35,171.31,4.11613598]
[1641314135647,2.63820451,171.35,171.32,4.11613598]
[1641314136647,2.63820451,171.36,171.33,4.11613598]
[1641314137147,12.34598007,171.35,171.31,4.11613598]
[1641314137848,2.63820451,171.35,171.32,4.11613598]
[1641314138550,14.98418458,171.35,171.31,4.11613598]
[1641314138751,12.34598007,171.35,171.31,4.11613598]
[1641314140458,14.98418458,171.36,171.32,4.11613598]
[1641314144659,12.34598007,171.35,171.31,4.11613598]
[1641314145259,2.63820451,171.36,171.33,4.11613598]
[1641314148662,4.11560712,171.34,171.3,13.82410102]
[1641314149263,4.11560712,171.36,171.3,13.82410102]
[1641314149466,4.11560712,171.36,171.3,1.47812095]
[1641314150966,4.11560712,171.36,171.3,6.66512095]
[1641314152166,4.11560712,171.36,171.31,1.47812095]
[1641314153767,4.11560712,171.36,171.3,1.47812095]
[1641314154569,4.11560712,171.35,171.3,41.48889102]
[1641314155177,4.11560712,171.34,171.31,1.47812095]
[1641314156573,4.11560712,171.35,171.31,20.50975215]
[1641314156873,4.11560712,171.35,171.31,26.55075215]
[1641314157273,4.11560712,171.35,171.32,1.47812095]
[1641314159577,4.11560712,171.33,171.31,19.0316312]
[1641314159779,4.11560712,171.33,171.3,1.47812095]
[1641314160177,7.11560712,171.33,171.3,1.47812095]
[1641314160580,4.11560712,171.32,171.3,1.47812095]
[1641314160779,4.11560712,171.32,171.28,12.34598007]
[1641314162981,27.66479,171.33,171.28,12.34598007]
[1641314163982,2.63808381,171.32,171.31,4.11619516]
[1641314164884,27.66479,171.33,171.27,13.82410102]
[1641314165083,27.66479,171.33,171.29,12.34598007]
[1641314167286,39.0483,171.35,171.29,12.34598007]
[1641314167885,2.63794156,171.34,171.32,4.11607662]
[1641314168587,12.34781364,171.36,171.32,4.11607662]
[1641314169187,3.0,171.34,171.32,4.11607662]
[1641314169587,27.66479,171.33,171.32,4.11607662]
[1641314170087,30.30273324,171.33,171.32,4.11607662]
[1641314170287,2.63794324,171.33,171.32,4.11607662]
[1641314170587,12.34781364,171.36,171.32,4.11607662]
[1641314170790,12.34781364,171.35,171.31,4.11607662]
[1641314171588,27.66479,171.33,171.31,4.11607662]
[1641314172590,27.66479,171.33,171.28,1.47812095]
[1641314172791,27.66479,171.33,171.29,12.34598007]
[1641314173891,30.66479,171.33,171.29,12.34598007]
[1641314174292,3.0,171.31,171.29,12.34598007]
[1641314174692,3.0,171.31,171.27,8.20272959]
[1641314175392,3.0,171.31,171.27,4.11699365]
[1641314175592,27.66479,171.28,171.27,4.11699365]
[1641314176192,30.40025359,171.28,171.25,1.49251728]
[1641314176894,27.66479,171.28,171.26,4.11736551]
[1641314178194,2.6249632,171.27,171.26,4.11736551]
[1641314178994,27.66479,171.28,171.26,4.11736551]
[1641314179895,2.62497976,171.27,171.26,4.11736551]
[1641314180395,27.66479,171.28,171.26,4.11736551]
[1641314180996,27.66479,171.33,171.27,4.0]
[1641314181299,2.734519,171.27,171.25,9.70836551]
[1641314181997,60.58799589,171.33,171.25,5.591]
[1641314182197,4.11522238,171.3,171.26,1.49251728]
[1641314182897,27.66479,171.33,171.26,1.49251728]
[1641314183098,27.66479,171.33,171.29,4.11522404]
[1641314184099,4.11522567,171.3,171.28,1.38188365]
[1641314184899,27.66479,171.33,171.26,1.38189938]
[1641314185499,42.2992843,171.32,171.3,4.11509423]
[1641314185699,2.7331843,171.32,171.3,4.11509423]
[1641314186101,27.66479,171.33,171.24,46.67679573]
[1641314186301,27.66479,171.33,171.29,4.11528192]
[1641314186302,40.1489,171.32,171.29,4.11528192]
[1641314186503,27.66479,171.33,171.29,4.11528192]
[1641314186801,27.66479,171.33,171.25,7.81039573]
[1641314187002,2.73331421,171.31,171.3,4.11520249]
[1641314187603,27.66479,171.33,171.25,7.81039573]
[1641314187803,41.1660557,171.32,171.25,7.81039573]
[1641314188205,2.73333454,171.31,171.3,4.11521943]
[1641314189106,27.66479,171.33,171.25,7.81039573]
[1641314189107,2.73334522,171.32,171.25,7.81039573]
[1641314189305,39.92384522,171.32,171.25,7.81039573]
[1641314189705,37.1905,171.32,171.25,7.81039573]
[1641314189905,2.73331873,171.31,171.3,4.11520626]
[1641314190306,27.66479,171.33,171.28,4.0]
[1641314191509,2.73323212,171.32,171.3,4.11513409]
[1641314192211,27.66479,171.33,171.28,4.0]
[1641314192411,3.0,171.32,171.25,6.42849635]
[1641314192612,41.1481,171.32,171.24,42.8664]
[1641314192813,2.73367346,171.31,171.28,4.11550187]
[1641314194013,27.66479,171.3,171.28,4.11550187]
[1641314194613,27.66479,171.3,171.24,42.8664]
[1641314194814,27.66479,171.3,171.27,4.11565827]
[1641314195215,2.73396368,171.29,171.25,1.38178004]
[1641314195813,2.73396368,171.29,171.24,4.0]
[1641314196014,27.66479,171.3,171.24,4.0]
[1641314196215,27.66479,171.3,171.27,4.11574761]
[1641314196819,27.66479,171.3,171.24,4.0]
[1641314197022,2.73377263,171.29,171.28,4.11558451]
[1641314197621,27.66479,171.3,171.25,1.38181188]
[1641314197921,38.1481,171.32,171.25,1.38181188]
[1641314198223,38.1481,171.32,171.25,7.67481188]
[1641314198422,2.7336719,171.29,171.28,4.11550057]
[1641314199123,38.1481,171.32,171.25,7.67481188]
[1641314199323,2.73338822,171.31,171.26,1.38181188]
[1641314199926,38.1481,171.32,171.29,4.11525744]
[1641314200227,27.66479,171.33,171.29,4.11525744]
[1641314200425,27.66479,171.33,171.26,1.38181188]
[1641314200625,2.7333696,171.31,171.26,1.38181188]
[1641314201726,37.8718,171.32,171.3,4.11518433]
[1641314201927,27.66479,171.33,171.3,4.11518433]
[1641314202129,2.73334968,171.31,171.25,1.38181188]
[1641314202327,2.73334968,171.31,171.27,5.489]
[1641314203227,2.73321117,171.32,171.3,4.11511663]
[1641314203828,27.66479,171.33,171.27,9.489]
[1641314204429,40.6837,171.36,171.27,37.15379]
[1641314204929,40.6837,171.36,171.31,4.11481885]
[1641314205130,2.73285384,171.32,171.31,4.11481885]
[1641314205731,2.73285282,171.35,171.29,1.38196501]
[1641314206732,53.02794236,171.36,171.32,4.11474745]
[1641314207633,53.02794236,171.36,171.28,20.15487893]
[1641314207634,2.73273444,171.35,171.28,20.15487893]
[1641314208233,53.02794236,171.36,171.28,20.15487893]
[1641314208436,53.02794236,171.36,171.32,4.11471688]
[1641314208935,2.73278272,171.35,171.29,35.5289]
[1641314209134,2.73278272,171.35,171.3,5.919]
[1641314209534,53.02794236,171.36,171.32,4.11476424]
[1641314210436,53.02794236,171.36,171.3,5.919]
[1641314210636,2.73278118,171.35,171.3,5.919]
[1641314211241,12.34424236,171.35,171.31,5.49680987]
[1641314211838,2.73279229,171.35,171.32,4.11476756]
[1641314213339,53.02800268,171.36,171.3,5.919]
[1641314213540,40.6837,171.36,171.3,10.02594371]
[1641314214040,2.72757143,171.35,171.3,5.919]
[1641314214240,2.72757143,171.35,171.28,36.7181]
[1641314214441,2.72757143,171.35,171.27,40.34479]
[1641314214743,40.6837,171.36,171.3,4.10692663]
[1641314214943,40.6837,171.36,171.3,10.17492663]
[1641314216144,2.72757479,171.35,171.3,6.068]
[1641314216545,40.6837,171.36,171.3,10.17491644]
[1641314216743,40.6837,171.36,171.3,14.17491644]
[1641314217144,40.6837,171.36,171.3,10.068]
[1641314217346,2.73275741,171.35,171.32,4.11473849]
[1641314218048,53.02800268,171.36,171.3,10.068]
[1641314219047,2.73275694,171.35,171.32,4.1147381]
[1641314219748,40.6837,171.36,171.33,4.11451239]
[1641314219949,12.34430268,171.37,171.33,4.11451239]
[1641314220550,27.66479,171.36,171.31,1.38201719]
[1641314221349,27.66479,171.36,171.3,4.0]
[1641314221550,2.7325408,171.35,171.32,4.11463823]
[1641314222251,2.7325408,171.35,171.3,4.0]
[1641314222452,27.66479,171.36,171.31,1.38200247]
[1641314223052,2.73257177,171.35,171.32,4.11458379]
[1641314223756,27.66479,171.36,171.3,4.0]
[1641314223957,27.66479,171.36,171.33,4.11458559]
[1641314224661,27.66479,171.36,171.31,1.38201167]
[1641314224861,2.73251813,171.35,171.3,4.0]
[1641314225764,27.66479,171.36,171.33,4.1144437]
[1641314226162,27.66479,171.36,171.3,4.0]
[1641314226365,2.73244533,171.35,171.3,4.0]
[1641314226965,27.66479,171.36,171.3,4.0]
[1641314227166,27.66479,171.36,171.33,4.11448249]
[1641314227765,27.66479,171.36,171.3,4.0]
[1641314227966,2.73265842,171.35,171.3,4.0]
[1641314228467,27.66479,171.36,171.33,4.11468145]
[1641314228967,2.73264677,171.35,171.3,20.76245656]
[1641314229869,27.66479,171.36,171.33,4.11464131]
[1641314230370,27.66479,171.36,171.3,4.0]
[1641314230569,2.73254116,171.35,171.34,4.11455829]
[1641314230969,2.73254116,171.35,171.34,5.829e-05]
[1641314231171,2.73254116,171.35,171.3,12.34445656]
[1641314231372,12.34367486,171.35,171.27,21.02445656]
[1641314231572,36.7628,171.34,171.27,21.02445656]
[1641314232273,36.7628,171.34,171.27,12.34445656]
[1641314232474,2.77036452,171.33,171.28,1.34488466]
[1641314233078,27.66479,171.32,171.28,1.34488466]
[1641314233377,27.66479,171.32,171.25,6.32985855]
[1641314233378,27.66479,171.32,171.25,1.34163393]
[1641314234076,21.07977414,171.32,171.25,1.34163393]
[1641314235177,2.82334267,171.31,171.25,1.34163393]
[1641314236278,12.31747296,171.34,171.28,4.0]
[1641314236579,32.92320589,171.38,171.31,4.0]
[1641314237179,32.92320589,171.38,171.35,27.66479]
[1641314237380,32.92320589,171.38,171.35,4.993]
[1641314237581,35.1032,171.42,171.35,4.993]
[1641314239179,27.66479,171.41,171.35,4.993]
[1641314242085,27.66479,171.41,171.37,4.0]
[1641314242384,27.66479,171.41,171.35,7.993]
[1641314242385,27.66479,171.41,171.35,4.993]
[1641314242585,27.66479,171.41,171.34,4.0]
[1641314244987,27.66479,171.41,171.33,6.51936436]
[1641314245587,27.66479,171.41,171.32,27.66479]
[1641314246489,9.92186854,171.4,171.32,27.66479]
[1641314247490,37.8209,171.39,171.32,27.66479]
[1641314253797,37.8209,171.39,171.34,4.0]
[1641314253996,27.66479,171.41,171.34,8.644]
[1641314256996,27.66479,171.41,171.34,4.644]
[1641314259299,27.66479,171.41,171.32,27.66479]
[1641314263301,27.66479,171.41,171.33,6.53481448]
[1641314263500,27.66479,171.41,171.33,11.32381448]
[1641314264001,27.66479,171.41,171.33,4.789]
[1641314265201,27.66479,171.41,171.33,11.32381505]
[1641314265501,27.66479,171.41,171.34,4.0]
[1641314266404,27.66479,171.41,171.33,4.789]
[1641314267305,12.34168087,171.4,171.33,4.789]
[1641314268712,12.34168087,171.4,171.32,40.00647087]
[1641314269413,40.00647087,171.41,171.32,40.00647087]
[1641314269611,40.00647087,171.41,171.32,46.58747087]
[1641314271012,40.00647087,171.41,171.34,4.0]
[1641314271217,27.66479,171.41,171.34,4.0]
[1641314271614,12.34168087,171.42,171.35,27.66479]
[1641314272215,35.9756,171.43,171.35,40.00647087]
[1641314273316,35.9756,171.43,171.37,12.34168087]
[1641314273518,27.66479,171.44,171.37,18.18968087]
[1641314274219,27.66479,171.44,171.37,5.848]
[1641314276220,40.00647087,171.44,171.37,5.848]
[1641314277122,2.6890471,171.43,171.38,1.42076164]
[1641314277521,2.6890471,171.43,171.36,20.29658354]
[1641314278321,15.03072797,171.43,171.36,20.29658354]
[1641314279324,15.03072797,171.43,171.38,4.0]
[1641314279725,2.6890471,171.43,171.37,5.195]
[1641314280224,2.6890471,171.43,171.38,13.76244251]
[1641314281027,2.6890471,171.43,171.36,20.29658354]
[1641314283031,2.6890471,171.43,171.38,4.0]
[1641314283230,2.6890471,171.43,171.38,9.219]
[1641314284632,2.6890471,171.43,171.39,1.42076164]
[1641314287836,27.66479,171.44,171.39,13.76244251]
[1641314288437,39.732,171.45,171.39,13.76244251]
[1641314288938,39.732,171.45,171.41,4.0]
[1641314289138,27.66479,171.46,171.41,8.114]
[1641314289339,27.66479,171.46,171.42,12.34168087]
[1641314290041,27.66479,171.46,171.42,13.76244251]
[1641314291342,27.66479,171.46,171.43,12.34168087]
[1641314292141,27.66479,171.5,171.43,12.34168087]
[1641314292341,4.11182836,171.47,171.43,18.11168087]
[1641314293344,4.11182836,171.48,171.44,13.76244251]
[1641314294045,27.66479,171.5,171.43,5.77]
[1641314295246,21.08615456,171.5,171.43,5.77]
[1641314296148,21.08615456,171.5,171.43,33.43479]
[1641314298147,21.08615456,171.5,171.43,5.77]
[1641314298348,21.08615456,171.5,171.41,16.94620253]
[1641314298549,27.45315456,171.5,171.41,12.88]
[1641314299348,2.74839303,171.49,171.46,4.06620253]
[1641314300348,15.0900739,171.49,171.45,4.06620253]
[1641314300950,2.74839303,171.49,171.46,4.06620253]
[1641314303551,2.74839303,171.49,171.46,5.42954103]
[1641314305456,2.74839303,171.49,171.47,4.06620253]
[1641314306753,2.74839303,171.49,171.48,4.06620253]
[1641314308056,2.74839303,171.5,171.48,4.06620253]
[1641314308858,2.74839303,171.51,171.48,4.06620253]
[1641314310661,2.74839303,171.51,171.5,4.0]
[1641314310860,0.54839303,171.51,171.5,10.11]
[1641314311260,0.54839303,171.51,171.5,14.17620253]
[1641314312259,12.34168087,171.54,171.5,10.11]
[1641314312461,12.34168087,171.55,171.5,10.11]
[1641314312960,12.34168087,171.55,171.51,4.1103166]
[1641314314462,12.34168087,171.55,171.54,4.0]
[1641314314660,12.34168087,171.55,171.54,8.32]
[1641314314862,7.12168087,171.55,171.54,8.32]
[1641314315863,32.92320589,171.58,171.54,8.32]
[1641314316062,32.92320589,171.62,171.54,12.4303166]
[1641314316863,39.866,171.61,171.54,12.4303166]
[1641314317263,39.866,171.61,171.56,4.1103166]
[1641314317963,39.866,171.61,171.57,4.1103166]
[1641314320165,39.866,171.61,171.54,8.32]
[1641314323670,39.866,171.61,171.57,4.1103166]
[1641314325172,39.866,171.61,171.57,8.1103166]
[1641314328373,39.866,171.61,171.58,4.1103166]
[1641314328572,27.66479,171.64,171.58,4.1103166]
[1641314328773,64.24579,171.64,171.58,4.1103166]
[1641314328972,3.0,171.63,171.57,4.1103166]
[1641314329472,64.24579,171.64,171.57,4.1103166]
[1641314329674,42.80548747,171.63,171.56,4.1103166]
[1641314330173,3.0,171.61,171.56,4.1103166]
[1641314330574,30.66479,171.61,171.56,4.1103166]
[1641314330773,30.66479,171.61,171.55,4.1103166]
[1641314331474,9.88228158,171.6,171.54,4.1103166]
[1641314331674,47.80558158,171.6,171.54,4.1103166]
[1641314333276,9.88228158,171.59,171.54,4.1103166]
[1641314334677,9.88228158,171.59,171.55,4.0]
[1641314335278,9.88228158,171.59,171.55,10.618]
[1641314335779,37.9233,171.6,171.55,14.7283166]
[1641314339382,37.9233,171.6,171.56,4.1103166]
[1641314340784,40.9233,171.6,171.55,14.7283166]
[1641314340986,37.9233,171.6,171.55,14.7283166]
[1641314342587,3.0,171.58,171.55,10.7283166]
[1641314342787,27.66479,171.57,171.55,4.1103166]
[1641314342986,35.79879,171.57,171.47,32.92320589]
[1641314343186,3.0,171.55,171.47,32.92320589]
[1641314343389,3.0,171.55,171.53,4.10979581]
[1641314343787,3.0,171.55,171.53,9.581e-05]
[1641314343996,30.66479,171.57,171.53,9.581e-05]
[1641314344390,9.88481431,171.56,171.45,4.0]
[1641314344788,38.3275,171.55,171.45,31.66479]
[1641314346191,44.5855,171.55,171.45,31.66479]
[1641314346991,44.5855,171.55,171.47,4.0]
[1641314347993,38.3275,171.55,171.47,9.36]
[1641314350796,50.57367592,171.55,171.47,21.60617592]
[1641314351396,2.71679296,171.54,171.48,13.6395791]
[1641314352798,2.71679296,171.54,171.49,27.66479]
[1641314353099,2.71679296,171.54,171.5,4.0]
[1641314353899,12.24617592,171.57,171.51,1.39340318]
[1641314354097,12.24617592,171.57,171.51,7.52040318]
[1641314355001,2.71679296,171.58,171.52,1.39340318]
[1641314355802,14.96296888,171.58,171.52,1.39340318]
[1641314356604,39.9802,171.59,171.51,18.37317592]
[1641314357404,15.08046984,171.58,171.52,1.35663648]
[1641314358205,52.30787446,171.59,171.51,18.37317592]
[1641314358404,52.30787446,171.59,171.52,4.0]
[1641314359012,2.7525186,171.58,171.53,1.35665673]
[1641314359705,52.30787446,171.59,171.52,4.0]
[1641314360404,2.75248576,171.58,171.53,1.35666221]
[1641314360905,52.30787446,171.59,171.53,1.35666221]
[1641314361105,52.30787446,171.59,171.52,4.0]
[1641314361607,52.30787446,171.59,171.53,1.35667355]
[1641314361807,2.75241768,171.58,171.53,1.35667355]
[1641314362308,39.9802,171.59,171.52,4.0]
[1641314363008,2.75243414,171.58,171.53,1.35667081]
[1641314364009,39.9802,171.59,171.52,4.0]
[1641314364910,2.75251079,171.58,171.53,1.35665803]
[1641314365510,42.9802,171.59,171.51,27.66479]
[1641314365710,39.9802,171.59,171.51,27.66479]
[1641314366511,39.9802,171.59,171.49,12.68]
[1641314366712,3.0,171.58,171.49,12.68]
[1641314366911,3.0,171.58,171.5,1.34892932]
[1641314367113,27.66479,171.57,171.5,1.34892932]
[1641314367712,27.66479,171.57,171.49,8.68]
[1641314367912,3.0,171.55,171.47,39.91096592]
[1641314368113,3.0,171.55,171.47,27.66479]
[1641314368314,30.66479,171.57,171.47,27.66479]
[1641314368515,30.66479,171.57,171.47,34.20779]
[1641314369014,2.73911749,171.56,171.47,34.20779]
[1641314369816,37.3227,171.55,171.47,34.20779]
[1641314370517,37.3227,171.55,171.48,1.34876282]
[1641314371219,21.08746752,171.52,171.48,1.34876282]
[1641314371518,37.3227,171.55,171.48,1.34876282]
[1641314371718,37.3227,171.55,171.47,1.34876282]
[1641314375820,2.75439429,171.54,171.49,12.24617592]
[1641314376923,2.75439429,171.54,171.49,1.34876282]
[1641314377524,2.75439429,171.54,171.48,19.95234866]
[1641314378429,15.08190077,171.54,171.48,1.34876282]
[1641314379832,27.66479,171.52,171.47,13.59493874]
[1641314381232,2.75439429,171.51,171.44,19.7946569]
[1641314382233,41.14409429,171.51,171.44,19.7946569]
[1641314383336,2.75439429,171.5,171.44,19.7946569]
[1641314384236,2.75439429,171.5,171.44,13.59493874]
[1641314385638,2.75439429,171.5,171.45,12.24617592]
[1641314388240,2.75439429,171.5,171.44,13.59493874]
[1641314389142,2.75439429,171.5,171.45,12.24617592]
[1641314389342,2.75439429,171.5,171.45,18.50417592]
[1641314389742,2.75439429,171.5,171.46,1.34876282]
[1641314391247,38.3897,171.51,171.44,1.34876282]
[1641314393245,38.3897,171.51,171.43,4.0]
[1641314395550,2.81452728,171.5,171.44,1.29704097]
[1641314400662,2.81452728,171.5,171.45,12.24617592]
[1641314400858,2.81452728,171.5,171.45,16.72917592]
[1641314401059,12.32750648,171.52,171.49,55.32958]
[1641314401259,12.32750648,171.52,171.49,61.72458]
[1641314401459,32.92320589,171.56,171.49,61.72458]
[1641314401658,12.33291695,171.56,171.49,61.72458]
[1641314401856,5.49795945,171.58,171.49,61.72458]
[1641314402061,24.12320589,171.6,171.49,61.72458]
[1641314402260,18.64320589,171.6,171.5,3.0]
[1641314402558,0.20320589,171.64,171.5,3.0]
[1641314402861,49.22719655,171.65,171.56,4.0]
[1641314403059,25.10719655,171.65,171.56,4.0]
[1641314403262,82.030466,171.7,171.63,2.79679411]
[1641314403263,92.13940033,171.7,171.63,2.79679411]
[1641314403565,11.80561306,171.66,171.65,3.0]
[1641314403760,11.80561306,171.66,171.65,10.0]
[1641314404172,4.79826334,171.7,171.65,10.0]
[1641314404362,27.66479,171.8,171.69,7.0]
[1641314404561,27.66479,171.8,171.69,9.672]
[1641314404761,27.66479,171.8,171.72,3.0]
[1641314405160,27.66479,171.8,171.72,27.66479]
[1641314405362,27.66479,171.8,171.73,4.0]
[1641314405564,27.66479,171.83,171.74,4.0]
[1641314405766,82.6623,172.04,171.78,7.0]
[1641314406061,82.6623,172.04,171.78,9.954]
[1641314406361,19.70349311,171.98,171.8,3.0]
[1641314406562,19.70349311,171.98,171.83,3.0]
[1641314406761,59.83829311,172.03,171.83,5.34]
[1641314406961,59.83829311,172.03,171.84,3.0]